fUST/lending_fUST_20240605
["ID","MTS","AMOUNT","RATE_DAILY","PERIOD"]
[328584935,1717572644023,-151.0,0.0002178,2]
[328584936,1717572644032,-151.0,0.0002178,2]
[328584937,1717572644042,-151.0,0.0002178,2]
[328584938,1717572644052,-151.0,0.0002178,2]
[328584939,1717572644061,-324.674444,0.0002178,2]
[328584940,1717572644070,-324.674444,0.0002178,2]
[328584941,1717572644079,-324.674444,0.0002178,2]
[328584942,1717572644089,-324.674444,0.0002178,2]
[328584943,1717572644098,-505.325936,0.0002178,2]
[328584944,1717572644107,-505.325936,0.0002178,2]
[328584945,1717572644117,-151.0,0.0002178,2]
[328584946,1717572644125,-151.0,0.0002178,2]
[328584947,1717572644135,-151.0,0.0002178,2]
[328584948,1717572644144,-151.0,0.0002178,2]
[328584949,1717572644153,-239.430358,0.0002178,2]
[328584950,1717572644162,-239.430358,0.0002178,2]
[328584951,1717572644171,-495.91381,0.0002178,2]
[328584952,1717572644180,-495.91381,0.0002178,2]
[328584953,1717572644190,-203.724511,0.0002178,2]
[328584954,1717572644198,-203.724511,0.0002178,2]
[328584955,1717572644207,-203.724511,0.0002178,2]
[328584956,1717572644216,-203.724511,0.0002178,2]
[328584957,1717572644226,-170.49723717,0.00021817,2]
[328584958,1717572644235,-1000.0,0.00021822,2]
[328584959,1717572644244,-300.0,0.0002184,2]
[328584960,1717572644253,-1600.0,0.000219,2]
[328584961,1717572644262,-800.0,0.000219,3]
[328584962,1717572644273,-505.325936,0.000219,2]
[328584963,1717572644283,-505.325936,0.000219,2]
[328584964,1717572644293,-151.0,0.000219,2]
[328584965,1717572644302,-151.0,0.000219,2]
[328584966,1717572644311,-151.0,0.000219,2]
[328584967,1717572644320,-239.430358,0.000219,2]
[328584968,1717572644329,-239.430358,0.000219,2]
[328584969,1717572644338,-495.91381,0.000219,2]
[328584970,1717572644347,-495.91381,0.000219,2]
[328584971,1717572644359,-12009.6367548,0.00021917,7]
[328584972,1717572644369,-27441.08410997,0.00021917,2]
[328584973,1717572644378,-500.0,0.00021917,2]
[328584974,1717572644387,-534.86628068,0.00021917,2]
[328584975,1717572644397,-409.10944813,0.00021917,2]
[328584978,1717572646272,-500.0,0.00019178,2]
[328584979,1717572646285,-500.0,0.00019178,2]
[328584981,1717572646295,-500.0,0.00019178,2]
[328584983,1717572646304,-500.0,0.00019178,2]
[328584984,1717572646315,-500.0,0.00019178,2]
[328584985,1717572646324,-500.0,0.00019178,2]
[328584986,1717572646333,-500.0,0.00019178,2]
[328584987,1717572646342,-199.9831915,0.00019178,2]
[328584988,1717572675105,156.86510884,9.999e-05,2]
[328584989,1717572686850,515.23760707,9.999e-05,2]
[328584990,1717572687667,945.17260851,0.00015,2]
[328584991,1717572688276,302.73262901,9.999e-05,2]
[328584992,1717572715944,285.68480276,9.999e-05,2]
[328584993,1717572774526,529.88558446,9.999e-05,2]
[328584994,1717572780148,865.21677624,9.999e-05,2]
[328584995,1717572782788,154.95351395,9.999e-05,2]
[328584996,1717572788485,1154.95106725,9.999e-05,2]
[328584997,1717572797372,181.89019986,9.999e-05,2]
[328584998,1717572802445,659.5511508,9.999e-05,2]
[328584999,1717572804113,284.3738385,0.000137,2]
[328585000,1717572891052,372.34814372,9.999e-05,2]
[328585002,1717573003251,1281.11111819,9.999e-05,2]
[328585003,1717573110900,154.95351395,9.999e-05,2]
[328585004,1717573123724,292.3550763,9.999e-05,2]
[328585005,1717573162115,1139.07338121,0.0001,2]
[328585006,1717573177191,272.3727093,9.999e-05,2]
[328585007,1717573178044,561.2342029,0.00013892,2]
[328585008,1717573180532,568.44231144,9.999e-05,2]
[328585009,1717573189974,4567.4297542,0.00013862,2]
[328585010,1717573198146,154.95351395,9.999e-05,2]
[328585011,1717573199409,923.52744316,0.00014,2]
[328585012,1717573309782,156.0474183,0.00014,2]
[328585013,1717573332083,154.95351395,9.999e-05,2]
[328585014,1717573333016,285.68480276,9.999e-05,2]
[328585015,1717573358054,837.58667401,9.999e-05,2]
[328585016,1717573364186,157.61789733,9.999e-05,2]
[328585017,1717573369702,154.95351395,9.999e-05,2]
[328585018,1717573388078,164.52045217,9.999e-05,2]
[328585019,1717573407858,284.3738385,0.000137,2]
[328585020,1717573417467,659.5511508,9.999e-05,2]
[328585021,1717573427590,529.88558446,9.999e-05,2]
[328585022,1717573589784,1139.07338121,0.0001,2]
[328585023,1717573614572,3720.1225967,0.00013623,2]
[328585024,1717573618137,-251.77783693,0.00014345,2]
[328585025,1717573653125,-272.3727093,0.00014342,2]
[328585026,1717573653145,-10836.4087907,0.00014342,2]
[328585034,1717573749729,3069.90171711,9.999e-05,2]
[328585035,1717573751175,-1982.29671203,0.0001428,2]
[328585036,1717573751196,-59539.43143747,0.00014281,2]
[328585037,1717573751217,-568.44231144,0.00014281,2]
[328585038,1717573751238,-659.5511508,0.00014281,2]
[328585039,1717573751259,-2685.70661711,0.00014281,2]
[328585040,1717573751281,-1606.95516292,0.00014282,2]
[328585041,1717573751303,-19295.71547601,0.00014338,2]
[328585042,1717573751325,-923.52744316,0.00014339,2]
[328585043,1717573751345,-2640.8656152,0.00014339,2]
[328585044,1717573751366,-9330.91837977,0.00014345,2]
[328585045,1717573751386,-323.96450678,0.00014382,2]
[328585046,1717573751407,-501.53708022,0.00014382,2]
[328585047,1717573751428,-846.98204868,0.00014951,2]
[328585048,1717573751449,-7913.37404345,0.00014983,2]
[328585049,1717573751470,-10520.76349836,0.00014996,2]
[328585050,1717573751500,-945.17260851,0.00015,2]
[328585051,1717573751521,-1099.91705711,0.00015,2]
[328585052,1717573751542,-1606.95516285,0.00016087,2]
[328585053,1717573751564,-846.98204868,0.00016188,2]
[328585066,1717573832227,-272.3727093,0.00017425,2]
[328585067,1717573832236,-846.98204868,0.00017426,2]
[328585068,1717573832247,-1606.95516285,0.00017891,2]
[328585069,1717573832256,-1264.84296356,0.00017892,2]
[328585070,1717573832266,-10480.39529953,0.00017898,2]
[328585071,1717573832274,-1982.29671203,0.00017998,2]
[328585072,1717573832283,-2685.70661711,0.00017999,2]
[328585073,1717573832292,-568.44231144,0.00017999,2]
[328585074,1717573832301,-2640.8656152,0.00017999,2]
[328585075,1717573832310,-2762.28835921,0.00018,2]
[328585076,1717573832319,-267.30356301,0.00018217,2]
[328585077,1717573832328,-846.98204868,0.00018663,2]
[328585078,1717573832338,-1675.02011905,0.000189,2]
[328585079,1717573832346,-1410.433106,0.00018973,2]
[328585080,1717573832356,-162.96737404,0.00019,2]
[328585081,1717573832365,-976.47976558,0.00019078,2]
[328585082,1717573832376,-155.88500975,0.00019176,2]
[328585083,1717573832385,-210.204713,0.00019176,2]
[328585084,1717573832394,-154.95351395,0.00019176,2]
[328585085,1717573832492,-721.35032538,0.00019176,2]
[328585086,1717573832501,-189.9698458,0.00019176,2]
[328585087,1717573832511,-415.49571088,0.00019176,2]
[328585088,1717573832520,-159.80819358,0.00019176,2]
[328585089,1717573832529,-836.47527539,0.00019176,2]
[328585090,1717573832538,-188.27020516,0.00019176,2]
[328585091,1717573832547,-214.32243239,0.00019176,2]
[328585092,1717573832557,-285.82015143,0.00019176,2]
[328585093,1717573832567,-533.29620021,0.00019176,2]
[328585094,1717573832577,-9593.22307146,0.00019176,2]
[328585095,1717573832586,-8539.86799705,0.00019176,2]
[328585096,1717573832595,-937.92652609,0.00019176,2]
[328585097,1717573832604,-581.53419333,0.00019176,2]
[328585098,1717573832614,-15837.61980804,0.00019176,2]
[328585099,1717573832625,-3446.46028724,0.00019176,2]
[328585100,1717573832637,-242.49911227,0.00019176,2]
[328585101,1717573832646,-946.62750351,0.00019176,2]
[328585102,1717573832655,-499.94549631,0.00019177,2]
[328585103,1717573832664,-162.91358729,0.00019177,2]
[328585104,1717573832674,-13583.19706522,0.00019177,2]
[328585105,1717573832686,-2109.72974711,0.00019177,2]
[328585106,1717573832695,-2754.00761405,0.00019178,7]
[328585128,1717573838250,-5612.5496688,0.00019178,7]
[328585180,1717573842832,-2738.58265685,0.00019178,7]
[328585181,1717573842843,-300.0168085,0.00019178,2]
[328585182,1717573842854,-500.0,0.00019178,2]
[328585183,1717573842863,-500.0,0.00019178,2]
[328585184,1717573842872,-500.0,0.00019178,2]
[328585185,1717573842883,-500.0,0.00019178,2]
[328585186,1717573842892,-500.0,0.00019178,2]
[328585187,1717573842901,-500.0,0.00019178,2]
[328585188,1717573842910,-500.0,0.00019178,2]
[328585189,1717573842919,-500.0,0.00019178,2]
[328585190,1717573842928,-500.0,0.00019178,2]
[328585191,1717573842938,-500.0,0.00019178,2]
[328585192,1717573842947,-500.0,0.00019178,2]
[328585193,1717573842955,-507.38932698,0.00019178,2]
[328585194,1717573842965,-500.0,0.00019178,2]
[328585195,1717573842974,-500.0,0.00019178,2]
[328585196,1717573842983,-500.0,0.00019178,2]
[328585197,1717573842992,-500.0,0.00019178,2]
[328585198,1717573843001,-500.0,0.00019178,2]
[328585199,1717573843010,-500.0,0.00019178,2]
[328585200,1717573843019,-500.0,0.00019178,2]
[328585204,1717573843113,-500.0,0.00019178,2]
[328585206,1717573843122,-500.0,0.00019178,2]
[328585208,1717573843131,-500.0,0.00019178,2]
[328585210,1717573843141,-500.0,0.00019178,2]
[328585212,1717573843150,-500.0,0.00019178,2]
[328585214,1717573843160,-500.0,0.00019178,2]
[328585216,1717573843169,-500.0,0.00019178,2]
[328585218,1717573843178,-500.0,0.00019178,2]
[328585220,1717573843187,-500.0,0.00019178,2]
[328585221,1717573843195,-500.0,0.00019178,2]
[328585223,1717573843204,-500.0,0.00019178,2]
[328585225,1717573843213,-500.0,0.00019178,2]
[328585227,1717573843223,-500.0,0.00019178,2]
[328585229,1717573843232,-500.0,0.00019178,2]
[328585231,1717573843241,-601.29470192,0.00019178,2]
[328585233,1717573843250,-500.0,0.00019178,2]
[328585235,1717573843259,-500.0,0.00019178,2]
[328585237,1717573843268,-500.0,0.00019178,2]
[328585239,1717573843277,-500.0,0.00019178,2]
[328585241,1717573843286,-500.0,0.00019178,2]
[328585243,1717573843295,-500.0,0.00019178,2]
[328585245,1717573843304,-500.0,0.00019178,2]
[328585247,1717573843314,-500.0,0.00019178,2]
[328585249,1717573843323,-500.0,0.00019178,2]
[328585251,1717573843332,-500.0,0.00019178,2]
[328585253,1717573843341,-500.0,0.00019178,2]
[328585255,1717573843351,-500.0,0.00019178,2]
[328585257,1717573843360,-500.0,0.00019178,2]
[328585259,1717573843369,-500.0,0.00019178,2]
[328585261,1717573843378,-500.0,0.00019178,2]
[328585263,1717573843389,-500.0,0.00019178,2]
[328585265,1717573843399,-500.0,0.00019178,2]
[328585267,1717573843408,-500.0,0.00019178,2]
[328585269,1717573843417,-500.0,0.00019178,2]
[328585271,1717573843426,-3541.66832638,0.00019178,2]
[328585273,1717573843435,-3541.66832638,0.00019178,2]
[328585275,1717573843445,-3541.66832638,0.00019178,2]
[328585278,1717573843454,-120.20659835,0.00019178,2]
[328585280,1717573843467,-3302.07897482,0.00019178,2]
[328585282,1717573843479,-119.38275321,0.00019178,2]
[328585284,1717573843488,-3541.66832638,0.00019178,2]
[328585286,1717573843497,-1067.46566841,0.00019178,2]
[328585294,1717573843561,-2474.20265797,0.00019178,2]
[328585296,1717573843570,-3541.66832638,0.00019178,2]
[328585297,1717573843579,-3541.66832638,0.00019178,2]
[328585298,1717573843588,-3541.66832638,0.00019178,2]
[328585299,1717573843597,-3541.66832638,0.00019178,2]
[328585300,1717573843606,-3541.66832638,0.00019178,2]
[328585301,1717573843615,-3541.66832638,0.00019178,2]
[328585302,1717573843623,-3541.66832638,0.00019178,2]
[328585303,1717573843632,-3541.66832638,0.00019178,2]
[328585304,1717573843646,-3541.66832638,0.00019178,2]
[328585305,1717573843654,-3541.66832638,0.00019178,2]
[328585306,1717573843663,-3541.66832638,0.00019178,2]
[328585307,1717573843672,-3541.66832638,0.00019178,2]
[328585308,1717573843681,-3541.66832638,0.00019178,2]
[328585309,1717573843690,-3541.66832638,0.00019178,2]
[328585310,1717573843699,-3541.66832638,0.00019178,2]
[328585311,1717573843708,-3541.66832638,0.00019178,2]
[328585312,1717573843718,-3541.66832638,0.00019178,2]
[328585313,1717573843727,-3541.66832627,0.00019178,2]
[328585314,1717573843738,-258.8607761,0.00019178,2]
[328585315,1717573843746,-552.09602688,0.00019178,2]
[328585316,1717573843755,-500.0,0.00019178,2]
[328585317,1717573843764,-500.0,0.00019178,2]
[328585318,1717573843773,-500.0,0.00019178,2]
[328585320,1717573843782,-490.0,0.00019178,2]
[328585322,1717573843791,-500.0,0.00019178,2]
[328585324,1717573843800,-500.0,0.00019178,2]
[328585326,1717573843810,-500.0,0.00019178,2]
[328585328,1717573843820,-500.0,0.00019178,2]
[328585331,1717573843835,-500.0,0.00019178,2]
[328585333,1717573843849,-500.0,0.00019178,2]
[328585336,1717573843863,-500.0,0.00019178,2]
[328585338,1717573843875,-500.0,0.00019178,2]
[328585340,1717573843889,-500.0,0.00019178,2]
[328585343,1717573843902,-616.3706058,0.00019178,2]
[328585345,1717573843915,-500.0,0.00019178,2]
[328585348,1717573843928,-500.0,0.00019178,2]
[328585350,1717573843942,-500.0,0.00019178,2]
[328585353,1717573843956,-165.08130819,0.00019178,2]
[328585355,1717573843969,-500.0,0.00019178,2]
[328585357,1717573843982,-500.0,0.00019178,2]
[328585360,1717573843994,-500.0,0.00019178,2]
[328585362,1717573844007,-500.0,0.00019178,2]
[328585365,1717573844020,-181.28653305,0.00019178,2]
[328585367,1717573844032,-235.45598619,0.00019178,2]
[328585369,1717573844043,-500.0,0.00019178,2]
[328585371,1717573844054,-500.0,0.00019178,2]
[328585374,1717573844066,-500.0,0.00019178,2]
[328585376,1717573844080,-500.0,0.00019178,2]
[328585379,1717573844092,-477.16068263,0.00019178,2]
[328585381,1717573844105,-500.0,0.00019178,2]
[328585384,1717573844119,-500.0,0.00019178,2]
[328585386,1717573844135,-500.0,0.00019178,2]
[328585388,1717573844147,-500.0,0.00019178,2]
[328585391,1717573844157,-500.0,0.00019178,2]
[328585393,1717573844168,-500.0,0.00019178,2]
[328585395,1717573844179,-500.0,0.00019178,2]
[328585398,1717573844192,-500.0,0.00019178,2]
[328585399,1717573844206,-500.0,0.00019178,2]
[328585400,1717573844217,-500.0,0.00019178,2]
[328585401,1717573844229,-500.0,0.00019178,2]
[328585402,1717573844241,-500.0,0.00019178,2]
[328585403,1717573844254,-500.0,0.00019178,2]
[328585404,1717573844264,-500.0,0.00019178,2]
[328585405,1717573844275,-500.0,0.00019178,2]
[328585406,1717573844287,-500.0,0.00019178,2]
[328585407,1717573844298,-500.0,0.00019178,2]
[328585408,1717573844310,-500.0,0.00019178,2]
[328585409,1717573844321,-500.0,0.00019178,2]
[328585410,1717573844332,-500.0,0.00019178,2]
[328585411,1717573844345,-500.0,0.00019178,2]
[328585412,1717573844356,-500.0,0.00019178,2]
[328585414,1717573844366,-237.56543336,0.00019178,2]
[328585415,1717573844378,-500.0,0.00019178,2]
[328585418,1717573844391,-500.0,0.00019178,2]
[328585420,1717573844403,-500.0,0.00019178,2]
[328585422,1717573844414,-550.0,0.00019178,2]
[328585424,1717573844425,-151.0,0.00019178,2]
[328585426,1717573844437,-153.627234,0.00019178,2]
[328585429,1717573844449,-151.0,0.00019178,2]
[328585431,1717573844460,-151.0,0.00019178,2]
[328585433,1717573844472,-151.0,0.00019178,2]
[328585436,1717573844483,-151.0,0.00019178,2]
[328585438,1717573844495,-151.0,0.00019178,2]
[328585440,1717573844506,-151.0,0.00019178,2]
[328585442,1717573844518,-151.0,0.00019178,2]
[328585445,1717573844529,-151.0,0.00019178,2]
[328585447,1717573844541,-151.0,0.00019178,2]
[328585449,1717573844553,-151.0,0.00019178,2]
[328585451,1717573844564,-155.222242,0.00019178,2]
[328585454,1717573844576,-155.222242,0.00019178,2]
[328585456,1717573844586,-155.222242,0.00019178,2]
[328585458,1717573844598,-155.222242,0.00019178,2]
[328585460,1717573844609,-151.0,0.00019178,2]
[328585463,1717573844621,-179.004533,0.00019178,2]
[328585465,1717573844632,-151.0,0.00019178,2]
[328585467,1717573844646,-151.0,0.00019178,2]
[328585469,1717573844657,-378.402075,0.00019178,2]
[328585472,1717573844669,-378.402075,0.00019178,2]
[328585474,1717573844680,-378.402075,0.00019178,2]
[328585476,1717573844691,-378.402075,0.00019178,2]
[328585478,1717573844703,-1808.393506,0.00019178,2]
[328585481,1717573844716,-1808.393506,0.00019178,2]
[328585483,1717573844730,-1808.393506,0.00019178,2]
[328585485,1717573844740,-1808.393506,0.00019178,2]
[328585487,1717573844749,-361.421513,0.00019178,2]
[328585489,1717573844758,-361.421513,0.00019178,2]
[328585498,1717573844890,-361.421513,0.00019178,2]
[328585499,1717573844900,-361.421513,0.00019178,2]
[328585500,1717573844909,-151.0,0.00019178,2]
[328585501,1717573844918,-151.0,0.00019178,2]
[328585502,1717573844927,-151.0,0.00019178,2]
[328585503,1717573844937,-151.0,0.00019178,2]
[328585504,1717573844947,-155.464486,0.00019178,2]
[328585505,1717573844956,-225.125861,0.00019178,2]
[328585506,1717573844965,-225.125861,0.00019178,2]
[328585507,1717573844974,-225.125861,0.00019178,2]
[328585508,1717573844983,-225.125861,0.00019178,2]
[328585509,1717573844992,-225.125861,0.00019178,2]
[328585510,1717573845001,-225.125861,0.00019178,2]
[328585511,1717573845010,-151.0,0.00019178,2]
[328585512,1717573845019,-418.719781,0.00019178,2]
[328585513,1717573845027,-418.719781,0.00019178,2]
[328585514,1717573845036,-418.719781,0.00019178,2]
[328585515,1717573845045,-418.719781,0.00019178,2]
[328585516,1717573845054,-418.719781,0.00019178,2]
[328585517,1717573845063,-418.719781,0.00019178,2]
[328585518,1717573845071,-398.699871,0.00019178,2]
[328585519,1717573845080,-398.699871,0.00019178,2]
[328585520,1717573845089,-398.699871,0.00019178,2]
[328585521,1717573845098,-398.699871,0.00019178,2]
[328585522,1717573845107,-398.699871,0.00019178,2]
[328585523,1717573845116,-398.699871,0.00019178,2]
[328585524,1717573845125,-261.823506,0.00019178,2]
[328585525,1717573845134,-261.823506,0.00019178,2]
[328585526,1717573845143,-261.823506,0.00019178,2]
[328585527,1717573845151,-261.823506,0.00019178,2]
[328585528,1717573845161,-167.286632,0.00019178,2]
[328585529,1717573845170,-151.0,0.00019178,2]
[328585530,1717573845179,-151.0,0.00019178,2]
[328585531,1717573845188,-151.0,0.00019178,2]
[328585532,1717573845197,-151.0,0.00019178,2]
[328585533,1717573845206,-1606.95516285,0.00019696,2]
[328585534,1717573845215,-846.98204868,0.000199,2]
[328585535,1717573845225,-12501.61838224,0.0002,2]
[328585536,1717573845235,-225.02004134,0.0002,2]
[328585537,1717573845244,-10130.47013065,0.0002,2]
[328585538,1717573845254,-461.97329918,0.0002,2]
[328585539,1717573845263,-3638.17643763,0.0002,2]
[328585540,1717573845272,-1163.61478021,0.0002,2]
[328585541,1717573845282,-37874.78967481,0.0002,2]
[328585542,1717573845291,-151.0,0.0002,2]
[328585543,1717573845301,-1354.21950592,0.0002,2]
[328585544,1717573845310,-1000.0,0.0002,2]
[328585545,1717573845320,-281.07202139,0.0002,2]
[328585546,1717573845330,-151.0,0.0002,2]
[328585547,1717573845339,-151.0,0.0002,2]
[328585548,1717573845349,-151.0,0.0002,2]
[328585549,1717573845358,-155.222242,0.0002,2]
[328585550,1717573845368,-155.222242,0.0002,2]
[328585551,1717573845377,-155.222242,0.0002,2]
[328585552,1717573845394,-155.222242,0.0002,2]
[328585553,1717573845404,-378.402075,0.0002,2]
[328585554,1717573845414,-378.402075,0.0002,2]
[328585555,1717573845424,-378.402075,0.0002,2]
[328585556,1717573845434,-378.402075,0.0002,2]
[328585557,1717573845444,-1808.393506,0.0002,2]
[328585558,1717573845453,-1808.393506,0.0002,2]
[328585559,1717573845464,-1808.393506,0.0002,2]
[328585560,1717573845474,-1808.393506,0.0002,2]
[328585561,1717573845483,-361.421513,0.0002,2]
[328585562,1717573845493,-361.421513,0.0002,2]
[328585563,1717573845503,-361.421513,0.0002,2]
[328585564,1717573845512,-361.421513,0.0002,2]
[328585565,1717573845521,-151.0,0.0002,2]
[328585566,1717573845531,-151.0,0.0002,2]
[328585567,1717573845540,-151.0,0.0002,2]
[328585568,1717573845550,-294.78193,0.0002,2]
[328585569,1717573845559,-225.125861,0.0002,2]
[328585570,1717573845569,-225.125861,0.0002,2]
[328585571,1717573845578,-225.125861,0.0002,2]
[328585572,1717573845588,-225.125861,0.0002,2]
[328585573,1717573845597,-418.719781,0.0002,2]
[328585574,1717573845606,-418.719781,0.0002,2]
[328585575,1717573845615,-418.719781,0.0002,2]
[328585576,1717573845624,-418.719781,0.0002,2]
[328585577,1717573845634,-398.699871,0.0002,2]
[328585578,1717573845649,-398.699871,0.0002,2]
[328585579,1717573845658,-398.699871,0.0002,2]
[328585580,1717573845667,-398.699871,0.0002,2]
[328585581,1717573845676,-261.823506,0.0002,2]
[328585582,1717573845686,-261.823506,0.0002,2]
[328585583,1717573845695,-261.823506,0.0002,2]
[328585584,1717573845704,-261.823506,0.0002,2]
[328585585,1717573845713,-3000.0,0.00020547,2]
[328585586,1717573845724,-3000.0,0.00020547,2]
[328585587,1717573845733,-3000.0,0.00020547,2]
[328585588,1717573845742,-2648.4384981,0.00020547,2]
[328585589,1717573845752,-3987.57363517,0.00021,2]
[328585590,1717573845761,-5339.51190223,0.00021,2]
[328585591,1717573845770,-1000.0,0.00021,2]
[328585592,1717573845780,-67750.57429904,0.00021,10]
[328585593,1717573845789,-7366.84033526,0.00021,2]
[328585594,1717573845798,-155.222242,0.00021,2]
[328585595,1717573845807,-155.222242,0.00021,2]
[328585596,1717573845816,-155.222242,0.00021,2]
[328585597,1717573845825,-155.222242,0.00021,2]
[328585598,1717573845834,-378.402075,0.00021,2]
[328585599,1717573845843,-378.402075,0.00021,2]
[328585600,1717573845852,-378.402075,0.00021,2]
[328585601,1717573845861,-378.402075,0.00021,2]
[328585602,1717573845870,-1808.393506,0.00021,2]
[328585603,1717573845879,-1808.393506,0.00021,2]
[328585604,1717573845889,-1808.393506,0.00021,2]
[328585605,1717573845899,-1808.393506,0.00021,2]
[328585606,1717573845908,-361.421513,0.00021,2]
[328585607,1717573845919,-361.421513,0.00021,2]
[328585608,1717573845928,-361.421513,0.00021,2]
[328585609,1717573845937,-361.421513,0.00021,2]
[328585610,1717573845947,-151.0,0.00021,2]
[328585611,1717573845956,-151.0,0.00021,2]
[328585612,1717573845966,-151.0,0.00021,2]
[328585613,1717573845975,-189.668744,0.00021,2]
[328585614,1717573845984,-151.0,0.00021,2]
[328585615,1717573845993,-151.0,0.00021,2]
[328585616,1717573846002,-225.125861,0.00021,2]
[328585617,1717573846011,-225.125861,0.00021,2]
[328585618,1717573846019,-225.125861,0.00021,2]
[328585619,1717573846028,-225.125861,0.00021,2]
[328585620,1717573846038,-418.719781,0.00021,2]
[328585621,1717573846047,-418.719781,0.00021,2]
[328585622,1717573846055,-418.719781,0.00021,2]
[328585623,1717573846065,-418.719781,0.00021,2]
[328585624,1717573846074,-398.699871,0.00021,2]
[328585625,1717573846084,-398.699871,0.00021,2]
[328585626,1717573846094,-398.699871,0.00021,2]
[328585627,1717573846103,-398.699871,0.00021,2]
[328585628,1717573846112,-261.823506,0.00021,2]
[328585629,1717573846121,-261.823506,0.00021,2]
[328585630,1717573846130,-261.823506,0.00021,2]
[328585631,1717573846140,-1606.95516285,0.000215,2]
[328585632,1717573846149,-1103.301613,0.000216,2]
[328585633,1717573846158,-161.397087,0.00021644,2]
[328585634,1717573846167,-153.53263308,0.00021697,2]
[328585635,1717573846177,-1038.76145129,0.00021748,2]
[328585636,1717573846186,-1000.0,0.00021775,2]
[328585637,1717573846195,-1000.05363556,0.00021781,2]
[328585638,1717573846204,-4011.28702932,0.00021795,2]
[328585639,1717573846213,-150.30596503,0.00021894,2]
[328585640,1717573846222,-8152.87971158,0.00021917,7]
[328585641,1717573846232,-500.0,0.00021917,2]
[328585642,1717573846241,-500.0,0.00021917,2]
[328585643,1717573846251,-500.0,0.00021917,2]
[328585644,1717573846261,-500.0,0.00021917,2]
[328585645,1717573846270,-500.0,0.00021917,2]
[328585646,1717573846279,-500.0,0.00021917,2]
[328585647,1717573846289,-500.0,0.00021917,2]
[328585648,1717573846298,-500.0,0.00021917,2]
[328585649,1717573846307,-508.03703274,0.00021917,2]
[328585650,1717573846316,-500.0,0.00021917,2]
[328585651,1717573846325,-505.31287802,0.00021917,2]
[328585652,1717573846334,-500.0,0.00021917,2]
[328585653,1717573846343,-500.0,0.00021917,2]
[328585654,1717573846352,-500.0,0.00021917,2]
[328585655,1717573846362,-500.0,0.00021917,2]
[328585656,1717573846371,-500.0,0.00021917,2]
[328585657,1717573846380,-500.0,0.00021917,2]
[328585658,1717573846391,-500.0,0.00021917,2]
[328585659,1717573846400,-500.0,0.00021917,2]
[328585660,1717573846411,-187.99068086,0.00021917,2]
[328585661,1717573846420,-500.0,0.00021917,2]
[328585662,1717573846429,-500.0,0.00021917,2]
[328585663,1717573846438,-505.04342734,0.00021917,2]
[328585664,1717573846448,-500.70109288,0.00021917,2]
[328585665,1717573846456,-516.15041057,0.00021917,2]
[328585666,1717573846465,-500.0,0.00021917,2]
[328585667,1717573846474,-501.13944699,0.00021917,2]
[328585668,1717573846484,-500.0,0.00021917,2]
[328585669,1717573846493,-500.0,0.00021917,2]
[328585670,1717573846503,-506.86856711,0.00021917,2]
[328585671,1717573846512,-541.71769285,0.00021917,2]
[328585672,1717573846521,-507.96277161,0.00021917,2]
[328585673,1717573846531,-500.0,0.00021917,2]
[328585674,1717573846540,-500.0,0.00021917,2]
[328585675,1717573846549,-532.0079095,0.00021917,2]
[328585676,1717573846558,-500.0,0.00021917,2]
[328585677,1717573846567,-506.91023584,0.00021917,2]
[328585678,1717573846576,-972.31,0.00021917,2]